Cogmind - Beta 10.2 @@@ ROGUE MODE // 2021.06.07 @ 22:52:34 Player: Levitus Result: Destroyed by G-47 Trooper with Particle Gun Performance ------------- Evolutions (3) 1500 Regions Visited (4) 800 Robots Destroyed (15) 75 Value Destroyed (304) 304 Prototype IDs (0) 0 Alien Tech Used (0) 0 Bonus (226) 226 TOTAL SCORE: 2905 Bonus ------- Pacifist 200 High Alert Combat Kills 26 Cogmind --------- Core Integrity 0/700 Matter 95/300 Energy 99/100 System Corruption 8% Temperature Cool (9) Movement Core (50) Location -7/Factory Parts ------- > --- POWER (4) -------- (None) > --- PROPULSION (5) --- (None) > --- UTILITY (2) ------ Improved Signal Interpreter > --- WEAPON (2) ------- Beam Cannon > --- INVENTORY (4) ---- Reinforced Deuterium Engine Long-range Terrain Scanner Great Maul Peak State ------------ > --- POWER ------------ Light Ion Engine Improved Ion Engine > --- PROPULSION ------- Flight Unit Flight Unit Flight Unit VTOL Module > --- UTILITY ---------- Advanced Weight Redist. System Improved Sensor Array > --- WEAPON ----------- Ion Cannon Rocket Launcher > --- INVENTORY -------- Flight Unit Beam Cannon Grenade Launcher [Rating: 18] Favorites ----------- Power Light Ion Engine Engine Light Ion Engine Propulsion Flight Unit Treads Light Treads Wheel Compact Wheel Flight Unit Flight Unit Utility Targeting Computer Device Improved Sensor Array Storage Small Storage Unit Processor Targeting Computer Weapon Light Assault Rifle Energy Cannon Beam Cannon Ballistic Gun Light Assault Rifle Launcher Rocket Launcher Build | -11 -10 -9 -8 -7 ------- Run | Scr Mat Mat Mat Fac Slots Evolved 6 | . . 2 2 2 Power 3 | . . 1 1 1 Propulsion 3 | . . 1 1 1 Utility . | . . . . . Weapon . | . . . . . Parts Attached 32 | 6 6 8 10 2 Power 5 | 1 1 2 1 . Engine 5 | 1 1 2 1 . Core . | . . . . . Reactor . | . . . . . Propulsion 10 | 2 2 3 3 . Treads 1 | 1 . . . . Leg . | . . . . . Wheel 1 | 1 . . . . Hover . | . . . . . Flight 8 | . 2 3 3 . Utility 8 | 1 3 1 2 1 Device 3 | . . 1 1 1 Storage 2 | 1 1 . . . Processor 3 | . 2 . 1 . Hackware . | . . . . . Protection . | . . . . . Artifact . | . . . . . Weapon 9 | 2 . 2 4 1 Energy Gun . | . . . . . Energy Cannon 4 | . . 2 1 1 Ballistic Gun 2 | 2 . . . . Ballistic Cannon . | . . . . . Launcher 3 | . . . 3 . Special Weapon . | . . . . . Impact Weapon . | . . . . . Slashing Weapon . | . . . . . Piercing Weapon . | . . . . . Special Melee Weapon . | . . . . . Unidentified Prototypes . | . . . . . Parts Lost 12 | . . 3 9 . Power 3 | . . 1 2 . Propulsion 4 | . . . 4 . Utility 1 | . . . 1 . Weapon 4 | . . 2 2 . Highest Loss Streak 5 | . . 3 5 . Average Slot Usage (%) 54 | . 91 74 66 10 Engine 9 | . 14 12 12 . Flight 16 | . 12 20 27 . Device 6 | . . 2 12 2 Storage 1 | . 14 . . . Processor 9 | . 8 19 5 7 Energy Cannon 4 | . . 13 3 . Ballistic Gun 3 | . 28 5 . . Launcher 1 | . . . 4 . Naked Turns . | . . . . . Heaviest Build 27 | 11 27 12 21 3 Greatest Support 26 | 20 16 12 26 3 Greatest Overweight (x) 1 | . 1 1 . . Average Overweight (x) . | . . . . . Largest Inventory Capacity 12 | 6 12 4 4 4 Average Capacity 4 | 5 7 4 4 4 Most Carried 7 | 6 7 4 4 4 Average Carried 3 | 4 4 3 3 3 Final Capacity 6 | 6 4 4 4 4 Final Carried 6 | 6 2 4 4 3 Class Distribution -------------------- 79% | Mutant 10% | Sprinter 10% | Scavenger-Sprinter Dominant Class ---------------- Mutant | -10/Materials Mutant | -9/Materials Mutant | -8/Materials Mutant | -7/Factory Resources | -11 -10 -9 -8 -7 ----------- Run | Scr Mat Mat Mat Fac Matter Collected 396 | 221 . 125 . 50 Remotely . | . . . . . Salvage Created 248 | . . 115 83 50 Parts 29 | . . 12 9 8 Haulers Intercepted 1 | . . . 1 . Recyclers Shooed . | . . . . . Parts Field Recycled . | . . . . . Retrieved Matter . | . . . . . Parts Self-Destructed . | . . . . . Prevented . | . . . . . Kills | -11 -10 -9 -8 -7 ------- Run | Scr Mat Mat Mat Fac Combat Hostiles Destroyed 13 | . . 7 5 1 Melee 1 | . . . . 1 Guns 3 | . . 3 . . Cannons 4 | . . 4 . . AOE 5 | . . . 5 . Classes Destroyed 5 | . . 1 3 1 Hauler 1 | . . . 1 . Watcher 1 | . . . 1 . Swarmer 11 | . . 7 4 . Grunt 1 | . . . 1 . Programmer 1 | . . . . 1 Best Kill Streak 7 | . . 7 4 1 Combat Bots Only 7 | . . 7 4 1 Max Kills in Single Turn 2 | . . 1 2 1 Gunslinging . | . . . . . Exploded 2 | . . . 2 . Melee 1 | . . . . 1 Uniques/NPCs Destroyed . | . . . . . Combat | -11 -10 -9 -8 -7 -------- Run | Scr Mat Mat Mat Fac Damage Taken 1987 | . 28 498 707 754 Core 1209 | . 28 192 284 705 Absorbed by Shields 24 | . . . . 24 Core Remaining (%) 72 | 100 88 52 48 . Volleys Fired 44 | . . 22 21 1 Largest 2 | . . 2 1 1 Hottest 120 | . . 120 60 60 Shots Fired 61 | . . 39 21 1 Gun 26 | . . 26 . . Cannon 20 | . . 13 6 1 Launcher 15 | . . . 15 . Special . | . . . . . Kinetic 26 | . . 26 . . Thermal 20 | . . 13 6 1 Explosive 15 | . . . 15 . Electromagnetic . | . . . . . Robot Hit Streak 7 | . . 7 2 . Robot Miss Streak 3 | . . 3 2 . Penetration Max . | . . . . . Secondary Targets 1 | . . 1 . . Max Gunslinging Chain 1 | . . 1 . . Shots Hit Robots 30 | . . 25 5 . Core Hits 32 | . . 9 13 10 Critical Hits . | . . . . . Critical Kills . | . . . . . Critical Parts Destroyed . | . . . . . Melee Attacks . | . . . . . Impact . | . . . . . Slashing . | . . . . . Piercing . | . . . . . Sneak Attacks . | . . . . . Combat Hostiles . | . . . . . Follow-up Attacks . | . . . . . Damage Inflicted 991 | . . 264 663 64 Guns 103 | . . 103 . . Cannons 233 | . . 161 72 . Explosions 591 | . . . 591 . Melee . | . . . . . Ramming 64 | . . . . 64 Kinetic 103 | . . 103 . . Thermal 233 | . . 161 72 . Explosive 591 | . . . 591 . Electromagnetic . | . . . . . Impact . | . . . . . Slashing . | . . . . . Piercing . | . . . . . Highest Corruption 8 | . . . . 8 Average Corruption 4 | . . . . 4 Corruption Purged . | . . . . . Effects 1 | . . . . 1 Data Loss (major) 1 | . . . . 1 Overload Shots . | . . . . . Overflow Damage 82 | . . 7 75 . Projectiles 7 | . . 7 . . Explosions 75 | . . . 75 . Melee . | . . . . . Knockbacks . | . . . . . Impact . | . . . . . Kinetic . | . . . . . Secondary . | . . . . . Self-Inflicted Damage 160 | . . . 133 27 Shots 5 | . . . 5 . Rammed 17 | . . . . 17 Targets Rammed 17 | . . . . 17 Kicked . | . . . . . Crushed . | . . . . . Highest Temperature 216 | . . 216 88 19 Average Temperature 58 | . . 118 25 12 Received Heat Transfer 354 | . 15 6 216 117 Siege Activations . | . . . . . Robots Corrupted . | . . . . . Combat Hostiles . | . . . . . Parts Fried . | . . . . . Impact Corruptions . | . . . . . Robots Melted . | . . . . . Combat Hostiles . | . . . . . Parts Melted . | . . . . . Heat Transferred 444 | . . 333 111 . Parts Sabotaged . | . . . . . Parts Stolen . | . . . . . Parts Stripped . | . . . . . Power Chain Reactions . | . . . . . Missiles Intercepted . | . . . . . Alert | -11 -10 -9 -8 -7 ------- Run | Scr Mat Mat Mat Fac Peak Influence 589 | . . 220 589 436 Initial 258 | . . . 92 258 Average 211 | . . 123 280 328 Maximum Alert Level 2 | . . 1 2 2 Low Security (%) 49 | 100 100 94 32 . Level 1 37 | . . 5 43 80 Level 2 13 | . . . 23 19 Level 3 . | . . . . . Level 4 . | . . . . . Level 5 . | . . . . . High Security . | . . . . . Max Security . | . . . . . Squads Dispatched 13 | . . 3 7 3 Investigation 6 | . . 2 1 3 Extermination . | . . . . . Reinforcement 7 | . . 1 6 . Assault . | . . . . . Garrison . | . . . . . Intercept . | . . . . . Construction Impeded 1 | . . . 1 . Haulers Reinforced . | . . . . . Stealth | -11 -10 -9 -8 -7 --------- Run | Scr Mat Mat Mat Fac Distress Signals 6 | . . 1 4 1 Communications Jammed . | . . . . . Distress Signals . | . . . . . Times Spotted 78 | . 6 15 50 7 Peak Tracking Total 18 | . 6 7 18 5 Tactical Retreats 9 | . . 1 5 3 Traps | -11 -10 -9 -8 -7 ------- Run | Scr Mat Mat Mat Fac Traps Triggered 1 | . . . . 1 Indirectly . | . . . . . Trap Hack Attempts . | . . . . . Triggered . | . . . . . Disarmed . | . . . . . Reprogrammed . | . . . . . Reused . | . . . . . Traps Extracted . | . . . . . Installed . | . . . . . Triggered . | . . . . . Machines | -11 -10 -9 -8 -7 ---------- Run | Scr Mat Mat Mat Fac Machines Disabled 6 | . . . 6 . Max in Single Turn 2 | . . . 2 . Machines Sabotaged . | . . . . . Garrisons Compromised . | . . . . . Overloaded Fab Kills . | . . . . . Fab Network Shutdowns . | . . . . . Hacking | -11 -10 -9 -8 -7 --------- Run | Scr Mat Mat Mat Fac Machines Accessed 8 | . . 2 3 3 Terminals 8 | . . 2 3 3 Fabricators . | . . . . . Repair Stations . | . . . . . Recycling Units . | . . . . . Scanalyzers . | . . . . . Garrison Access . | . . . . . Total Hacks 22 | . . 6 7 9 Successful 7 | . . . 4 3 Failed 15 | . . 6 3 6 Catastrophic 5 | . . 2 1 2 Database Lockouts . | . . . . . Manual 5 | . . 4 1 . Terminals 22 | . . 6 7 9 Fabricators . | . . . . . Repair Stations . | . . . . . Recycling Units . | . . . . . Scanalyzers . | . . . . . Garrison Access . | . . . . . Terminal Hacks 7 | . . . 4 3 Level Access Points 1 | . . . 1 . Emergency Access Points 1 | . . . . 1 Alert Level 1 | . . . 1 . Unreport Threat 1 | . . . 1 . Zone Layout 3 | . . . 1 2 Fabricator Hacks . | . . . . . Repair Station Hacks . | . . . . . Recycling Unit Hacks . | . . . . . Scanalyzer . | . . . . . Garrison Access Hacks . | . . . . . Unauthorized Hacks . | . . . . . Terminals . | . . . . . Fabricators . | . . . . . Repair Stations . | . . . . . Recycling Units . | . . . . . Scanalyzers . | . . . . . Garrison Access . | . . . . . Data Cores Recovered . | . . . . . Used . | . . . . . Hacking Detections 8 | . . 2 3 3 Full Trace Events 6 | . . 2 1 3 Feedback Events . | . . . . . Feedback Blocked . | . . . . . Robot Schematics Acquired . | . . . . . Robots Built . | . . . . . Matter . | . . . . . Time . | . . . . . Total Robot Build Rating . | . . . . . Part Schematics Acquired . | . . . . . Parts Built . | . . . . . Matter . | . . . . . Time . | . . . . . Total Part Build Rating . | . . . . . Parts Repaired . | . . . . . Time . | . . . . . Parts Recycled . | . . . . . Recycled Matter . | . . . . . Retrieved Matter . | . . . . . Retrieved Components . | . . . . . Parts Scanalyzed . | . . . . . Part Schematics Acquired . | . . . . . Parts Damaged . | . . . . . Bothacking | -11 -10 -9 -8 -7 ------------ Run | Scr Mat Mat Mat Fac Used RIF Installer . | . . . . . Robots Hacked . | . . . . . Non-combat . | . . . . . Combat . | . . . . . Robot Hacks Applied . | . . . . . Relay Couplers Released . | . . . . . Robots Rewired . | . . . . . Allies Hacked . | . . . . . Hacks Repelled . | . . . . . Allies | -11 -10 -9 -8 -7 -------- Run | Scr Mat Mat Mat Fac Total Allies . | . . . . . Largest Group . | . . . . . Highest-Rated Group . | . . . . . Highest-Rated Ally . | . . . . . Total Orders . | . . . . . Ally Attacks . | . . . . . Total Damage . | . . . . . Kills . | . . . . . Allies Corrupted . | . . . . . Allies Melted . | . . . . . Intel | -11 -10 -9 -8 -7 ------- Run | Scr Mat Mat Mat Fac Robot Analysis Total . | . . . . . Derelict Logs Recovered . | . . . . . Drone Launches . | . . . . . Drone Recoveries . | . . . . . Exploration | -11 -10 -9 -8 -7 ------------- Run | Scr Mat Mat Mat Fac Turns Passed 904 | 75 66 215 311 237 Spaces Moved 1490 | 46 78 362 617 387 Core 407 | 9 . 5 6 387 Treads 25 | 25 . . . . Legs . | . . . . . Wheels 39 | 12 27 . . . Hover . | . . . . . Flight 1019 | . 51 357 611 . Fastest Speed 31 | 50 37 34 31 50 Average Speed 42 | 122 61 35 34 50 Slowest Speed 160 | 160 110 100 50 50 Overloaded Moves . | . . . . . Propulsion Burnouts . | . . . . . Robots Hopped 6 | . 1 . 5 . Cave-ins Triggered . | . . . . . Exploration Rate (%) 27 | 3 22 40 58 12 Regions Visited 4 Branch Regions . Pre-discovered Areas . | . . . . . Known Exits Taken 1 | . . . 1 . Unknown Exits Taken 3 | 1 1 1 . . Scrap Searched . | . . . . . Spaces Dug 33 | . . . 33 . Terrain Destroyed 116 | . . . 116 . Melee . | . . . . . Projectile 1 | . . . 1 . AOE 115 | . . . 115 . Terrain Rammed . | . . . . . Walls Destroyed . | . . . . . Machines Disabled . | . . . . . Actions | -11 -10 -9 -8 -7 --------- Run | Scr Mat Mat Mat Fac Total 1709 | 64 98 418 696 433 Wait 42 | 1 1 4 30 6 Move 1475 | 45 75 361 607 387 Hop 5 | . 1 . 4 . Pick Up 50 | 12 7 15 12 4 Fast Attach . | . . . . . Attach 26 | 6 6 7 5 2 Detach 4 | . . . 3 1 Swap 6 | . . 1 5 . Drop 29 | . 8 8 9 4 Fire 44 | . . 22 21 1 Melee . | . . . . . Ram 17 | . . . . 17 Kick . | . . . . . Crush . | . . . . . Escape Stasis 11 | . . . . 11 Rewire . | . . . . . Trap . | . . . . . Miscellaneous . | . . . . . Route ------- -11/Scrapyard -10/Materials -9/Materials -8/Materials (discovered 3 exits: *Fac x3) -7/Factory History --------- Turn | Location | Event 29 | -11/Scrapyard | Discovered new exit (range 16) 76 | -11/Scrapyard | Entered Materials 138 | -10/Materials | Discovered new exit (range 13) 142 | -10/Materials | Entered another Materials area 142 | -9/Materials | Evolved 2 slots: Power x1, Propulsion x1 233 | -9/Materials | Lost 3 parts (1p2w) 246 | -9/Materials | Destroyed 7 combat bots 311 | -9/Materials | Build established: Mutant 324 | -9/Materials | Discovered new exit (range 14) 357 | -9/Materials | Entered another Materials area 357 | -8/Materials | Evolved 2 slots: Power x1, Propulsion x1 631 | -8/Materials | Lost 5 parts (1p3n1w) 639 | -8/Materials | Identified exit to Factory 668 | -8/Materials | Core integrity fell below 50% 668 | -8/Materials | Entered Factory 668 | -7/Factory | Evolved 2 slots: Power x1, Propulsion x1 696 | -7/Factory | Lost 3 parts (1n1u1w) 832 | -7/Factory | Core integrity fell below 50% 894 | -7/Factory | Core integrity fell below 20% 905 | -7/Factory | Destroyed by G-47 Trooper with Particle Gun Last Messages --------------- 00794_ Manufacturing Mainframe disabled. 00820_ K-01 Serf collects debris. 00827_ Dropped Imp. Sensor Array. 00828_ Acquired Great Maul. 00831_ Slammed into P-60 Hacker. 00844_ T-07 Excavator destroyed. 00880_ Slammed into P-60 Hacker. 00886_ Destabilizing: Core damaged (-14). 00887_ Slammed into P-60 Hacker. 00887_ Destabilizing: System interference. 00887_ Imp. Signal Interpreter temporarily disabled. 00888_ System corrupted: Substantial component data lost. 00888_ Slammed into P-60 Hacker. 00891_ Destabilizing: System corrupted (+1). 00892_ Slammed into P-60 Hacker. 00892_ Destabilizing: Core damaged (-7). 00893_ Slammed into P-60 Hacker. 00896_ P-60 Hacker destroyed. 00897_ Acquired 50 matter. [Achievement: Achiever] Map ----- +----------------------------------------------------+ | ?? ""????????????????????????????????????????????? | | "" """ #?????????????????????????????????????????? | | "" """ #?????????????????????????????????????????? | | ??????????????????????????????????????????? | | "" """ #?????????????????????????????????????????? | | "" """ ??????????????????????????????????????????? | | "" ""????????????????????????????????????????????? | | ??????????????????????????????????????????????? | | +################????????????????????????????????? | | + /#????????????????????????????????? | | # """""" #????????????????????????????????? | | # """""" #????????????????????????????????? | | + """""" !#????????????????????????????????? | | # """""" #????????????????????????????????? | | # #????????????????????????????????? | | # """""" #????????????????????????????????? | | #! """""" #????????????????????????????????? | | # """""" """#????????????????????????????????? | | # """""" Y"#????????????????????????????????? | | # """#????????????????????????????????? | | # * #????????????????????????????????? | | ####+###################??????????????????????? | | #??# #???????# !#??????????????????????? | | #??# #???????# ! #??????????????????????? | | #??# #???????# g #??????????????????????? | | #??# #???????# """ """@#??????????????????????? | | #??# ######### """ """!#??????????????????????? | | #??# + """ """[#??????????????????????? | | #??# ####### g* !#? ????????????????????? | | #### #?????# [Y!|[!!#? ????????????????????? | | #???############## ????????????????????? | | #???# # ????????????????????? | | #???# """"""""" # ????????????????????? | | #???# # ????????????????????? | | #???# """"""""" # ????????????????????? | | #???# # #???????????????????? | | #???# """"""""" # #???????????????????? | | #???# # #???????????????????? | | ##### """"""""" # #???????????????????? | | + # #?#########?????????? | | ##### """"""""" # #?# ????????? | | #???# # #?# """ """ ????????? | | #???# ] # #?# """ """ #???????? | | ###########+###### ### """ """ #???????? | | + #???????? | | #*!!! ] !#???????? | | """ # !! #???????? | | ""R" + !! ! #???????? | | "" " ##################? | | #######+########### #??????# #? | +----------------------------------------------------+ Best States ------------- Heat Dissipation 34 Energy Generation 17 Energy Capacity 290 Matter Stores 261 Matter Capacity 300 Sight Range 16 Robot Scan Range 13 Terrain Scan Density 10 Additional Mass Support 9 Evasion (%) 63 Targeting Accuracy 10 Recoil Reduction 1 Item Schematics ----------------- None Robot Schematics ------------------ None Fabricated ------------ Nothing Alien Tech Used ----------------- None Achievements -------------- Achiever Party Time Challenges ------------ None Game ------ Seed MyomerTrackerNukerbomber Manual? 0 Play Time 00:37:10 Cumulative 28.0 hours Start 2021.06.07 @ 22:15:16 End 2021.06.07 @ 22:52:34 Sessions 1 Manual Loads 0 Difficulty Rogue Special Mode None Game No. 21 Rogue 21 Adventurer 0 Explorer 0 Win Type - Total 0 Types 0/0/0/0/0/0/0/0/0 Lore% 9 Gallery% 31 Achievement% 25 Wizard Run 0 Options --------- ASCII 0 Keyboard 0 Movement Numpad Keybinds 0 Fullscreen 1 Font 18/SmallcapsGlow Map View 76x50 Tactical HUD 1 Map Filters NONE Filters NONE Steam 1 RUN: d16f4992-18d4-432b-a499-ae2f76e593f4